[Event "*** Titled Tuesday Blitz"]
[Site "Chess.com"]
[Date "2020.02.04"]
[Round "1"]
[White "victormago"]
[Black "Tjktiger"]
[Result "1/2-1/2"]
[WhiteElo "2401"]
[BlackElo "2744"]
[TimeControl "180+2"]
[EndTime "9:10:41 PST"]
[Termination "Game drawn by repetition"]

1. d4 {[%clk 0:03:01.9]} 1... Nf6 {[%clk 0:03:00.5]} 2. c4 {[%clk 0:03:02.2]}
2... g6 {[%clk 0:03:01.7]} 3. Nc3 {[%clk 0:03:03.2]} 3... d5 {[%clk 0:03:03.1]}
4. cxd5 {[%clk 0:03:04]} 4... Nxd5 {[%clk 0:03:05]} 5. e4 {[%clk 0:03:05.6]}
5... Nxc3 {[%clk 0:03:06.3]} 6. bxc3 {[%clk 0:03:07.4]} 6... Bg7 {[%clk
0:03:08.2]} 7. Nf3 {[%clk 0:03:07.7]} 7... c6 {[%clk 0:03:09.3]} 8. Be2 {[%clk
0:03:04.9]} 8... O-O {[%clk 0:03:10.1]} 9. O-O {[%clk 0:03:05.9]} 9... Nd7
{[%clk 0:03:11.2]} 10. a4 {[%clk 0:03:00.1]} 10... Nf6 {[%clk 0:03:09.6]} 11.
Bd3 {[%clk 0:02:59.8]} 11... c5 {[%clk 0:03:08]} 12. h3 {[%clk 0:02:58.9]} 12...
b6 {[%clk 0:03:08.9]} 13. Re1 {[%clk 0:02:59.2]} 13... Bb7 {[%clk 0:03:09.8]}
14. Ba3 {[%clk 0:02:57.8]} 14... Rc8 {[%clk 0:03:09.9]} 15. Rb1 {[%clk
0:02:45.6]} 15... Qc7 {[%clk 0:03:10.1]} 16. d5 {[%clk 0:02:40.3]} 16... e6
{[%clk 0:02:52.5]} 17. c4 {[%clk 0:02:39.6]} 17... e5 {[%clk 0:02:47.7]} 18. a5
{[%clk 0:02:28.7]} 18... Nd7 {[%clk 0:02:47.6]} 19. axb6 {[%clk 0:02:29.1]}
19... axb6 {[%clk 0:02:48.2]} 20. Bb2 {[%clk 0:02:30.1]} 20... Qd6 {[%clk
0:02:37.9]} 21. Qb3 {[%clk 0:02:29.9]} 21... h6 {[%clk 0:02:30.5]} 22. Ra1
{[%clk 0:02:25.1]} 22... Ra8 {[%clk 0:02:29.5]} 23. Rxa8 {[%clk 0:02:25.2]}
23... Rxa8 {[%clk 0:02:31.4]} 24. Ra1 {[%clk 0:02:26.4]} 24... Rxa1+ {[%clk
0:02:30.3]} 25. Bxa1 {[%clk 0:02:28.3]} 25... Nb8 {[%clk 0:01:40.4]} 26. Nd2
{[%clk 0:02:21.4]} 26... Na6 {[%clk 0:01:40.1]} 27. Bc3 {[%clk 0:02:21]} 27...
Nb4 {[%clk 0:01:40.4]} 28. Bf1 {[%clk 0:02:16.1]} 28... f5 {[%clk 0:01:39.5]}
29. Nb1 {[%clk 0:02:13.8]} 29... fxe4 {[%clk 0:01:33.9]} 30. Nd2 {[%clk
0:02:14.1]} 30... e3 {[%clk 0:01:25.2]} 31. fxe3 {[%clk 0:02:14.6]} 31... Qf8
{[%clk 0:01:09.2]} 32. e4 {[%clk 0:02:03.3]} 32... Qf4 {[%clk 0:01:00.5]} 33.
Bxb4 {[%clk 0:01:48.5]} 33... cxb4 {[%clk 0:01:01.2]} 34. Qxb4 {[%clk
0:01:49.9]} 34... Qe3+ {[%clk 0:01:00.7]} 35. Kh2 {[%clk 0:01:50.1]} 35... Bf8
{[%clk 0:00:57.3]} 36. d6 {[%clk 0:01:39.3]} 36... Qd4 {[%clk 0:00:56.3]} 37.
Nf3 {[%clk 0:01:38.9]} 37... Qxd6 {[%clk 0:00:38]} 38. Qxd6 {[%clk 0:01:37.5]}
38... Bxd6 {[%clk 0:00:39.9]} 39. Bd3 {[%clk 0:01:37.7]} 39... Kf7 {[%clk
0:00:38.4]} 40. Kg3 {[%clk 0:01:38.9]} 40... Ke6 {[%clk 0:00:33.6]} 41. Kf2
{[%clk 0:01:39.3]} 41... Bc5+ {[%clk 0:00:26.2]} 42. Ke2 {[%clk 0:01:39.6]}
42... g5 {[%clk 0:00:26.7]} 43. Nh2 {[%clk 0:01:38.5]} 43... h5 {[%clk
0:00:25.9]} 44. Nf3 {[%clk 0:01:38.3]} 44... Kf6 {[%clk 0:00:27]} 45. Nd2 {[%clk
0:01:37.3]} 45... Bc8 {[%clk 0:00:27.1]} 46. Nb3 {[%clk 0:01:38]} 46... Bb4
{[%clk 0:00:27.1]} 47. Kf3 {[%clk 0:01:38.1]} 47... Be6 {[%clk 0:00:27.4]} 48.
Nc1 {[%clk 0:01:35.1]} 48... g4+ {[%clk 0:00:25.4]} 49. hxg4 {[%clk 0:01:35.6]}
49... Bxg4+ {[%clk 0:00:26.6]} 50. Kg3 {[%clk 0:01:34.6]} 50... Kg5 {[%clk
0:00:27.3]} 51. Nb3 {[%clk 0:01:31.1]} 51... Bd1 {[%clk 0:00:23.8]} 52. Nc1
{[%clk 0:01:30.2]} 52... h4+ {[%clk 0:00:25]} 53. Kf2 {[%clk 0:01:31.1]} 53...
Bc5+ {[%clk 0:00:24.4]} 54. Ke1 {[%clk 0:01:32.3]} 54... Bh5 {[%clk 0:00:22.1]}
55. Be2 {[%clk 0:01:33.4]} 55... Bxe2 {[%clk 0:00:18.3]} 56. Nxe2 {[%clk
0:01:33.4]} 56... Kg4 {[%clk 0:00:18.5]} 57. Kd2 {[%clk 0:01:33.4]} 57... Be7
{[%clk 0:00:12.1]} 58. Ke3 {[%clk 0:01:33.7]} 58... Bc5+ {[%clk 0:00:11.3]} 59.
Kd2 {[%clk 0:01:34.1]} 59... Bf2 {[%clk 0:00:12.2]} 60. Kd3 {[%clk 0:01:35]}
60... Bc5 {[%clk 0:00:13.3]} 61. Kc3 {[%clk 0:01:35.4]} 61... h3 {[%clk
0:00:12.8]} 62. gxh3+ {[%clk 0:01:36]} 62... Kf3 {[%clk 0:00:14.3]} 63. Kd3
{[%clk 0:01:37.9]} 63... Bb4 {[%clk 0:00:11.2]} 64. h4 {[%clk 0:01:38.3]} 64...
Kg4 {[%clk 0:00:12.2]} 65. Nc3 {[%clk 0:01:38.3]} 65... Kxh4 {[%clk 0:00:10.4]}
66. Nd5 {[%clk 0:01:38.7]} 66... Bc5 {[%clk 0:00:10.6]} 67. Nc3 {[%clk
0:01:39.7]} 67... Kg4 {[%clk 0:00:11.3]} 68. Nd5 {[%clk 0:01:40.7]} 68... Kf3
{[%clk 0:00:11.5]} 69. Nc3 {[%clk 0:01:41.7]} 69... Bd4 {[%clk 0:00:12.2]} 70.
Nd5 {[%clk 0:01:42.9]} 70... Kg4 {[%clk 0:00:13.3]} 71. Nf6+ {[%clk 0:01:43.8]}
71... Kg5 {[%clk 0:00:13.5]} 72. Nd5 {[%clk 0:01:45.7]} 72... Kg6 {[%clk
0:00:14.3]} 73. Nb4 {[%clk 0:01:46.3]} 73... Kf7 {[%clk 0:00:14.4]} 74. Nd5
{[%clk 0:01:47.4]} 74... Ke6 {[%clk 0:00:15.4]} 75. Nb4 {[%clk 0:01:48.5]} 75...
Kd6 {[%clk 0:00:16.4]} 76. Nd5 {[%clk 0:01:49.7]} 76... Kc5 {[%clk 0:00:16.6]}
77. Nf6 {[%clk 0:01:50.9]} 77... Kc6 {[%clk 0:00:15.7]} 78. Nd5 {[%clk
0:01:51.9]} 78... Kc5 {[%clk 0:00:16.6]} 79. Nf6 {[%clk 0:01:53.1]} 79... b5
{[%clk 0:00:13.6]} 80. cxb5 {[%clk 0:01:53.9]} 80... Kxb5 {[%clk 0:00:15.5]} 81.
Ng4 {[%clk 0:01:52.4]} 81... Kc5 {[%clk 0:00:12.8]} 82. Ke2 {[%clk 0:01:52.4]}
82... Kc4 {[%clk 0:00:13.5]} 83. Kf3 {[%clk 0:01:52.8]} 83... Kc5 {[%clk
0:00:13.6]} 84. Nf6 {[%clk 0:01:54]} 84... Kd6 {[%clk 0:00:14.2]} 85. Nd5 {[%clk
0:01:53.3]} 85... Ke6 {[%clk 0:00:15.5]} 86. Kg4 {[%clk 0:01:54.6]} 86... Bc5
{[%clk 0:00:16]} 87. Kg5 {[%clk 0:01:55]} 87... Bd4 {[%clk 0:00:16.6]} 88. Kg6
{[%clk 0:01:56.2]} 88... Bb2 {[%clk 0:00:16.6]} 89. Kg5 {[%clk 0:01:57.3]} 89...
Bd4 {[%clk 0:00:17.3]} 90. Kg4 {[%clk 0:01:58.5]} 90... Bb2 {[%clk 0:00:18.1]}
91. Kg5 {[%clk 0:01:59.8]} 91... Bd4 {[%clk 0:00:19.1]} 1/2-1/2

[Event "*** Titled Tuesday Blitz"]
[Site "Chess.com"]
[Date "2020.02.04"]
[Round "1"]
[White "iLuusions"]
[Black "Chessalary"]
[Result "1-0"]
[WhiteElo "2603"]
[BlackElo "2163"]
[TimeControl "180+2"]
[EndTime "9:10:45 PST"]
[Termination "iLuusions won by resignation"]

1. d4 {[%clk 0:02:58.2]} 1... d5 {[%clk 0:03:00.5]} 2. c4 {[%clk 0:03:00.1]}
2... e6 {[%clk 0:03:01.5]} 3. Nf3 {[%clk 0:03:01.2]} 3... c6 {[%clk 0:03:01.9]}
4. g3 {[%clk 0:03:00.1]} 4... Bb4+ {[%clk 0:03:02.5]} 5. Bd2 {[%clk 0:03:00.8]}
5... Be7 {[%clk 0:03:03]} 6. Bg2 {[%clk 0:03:02.2]} 6... Nf6 {[%clk 0:03:04]} 7.
O-O {[%clk 0:03:03.7]} 7... O-O {[%clk 0:03:04.7]} 8. Qc2 {[%clk 0:03:03]} 8...
Nbd7 {[%clk 0:03:05.6]} 9. Bf4 {[%clk 0:03:02.6]} 9... b6 {[%clk 0:03:05.7]} 10.
Nc3 {[%clk 0:02:47.5]} 10... Ba6 {[%clk 0:03:02]} 11. cxd5 {[%clk 0:02:47.5]}
11... cxd5 {[%clk 0:03:03.9]} 12. Qa4 {[%clk 0:02:45.3]} 12... Bb7 {[%clk
0:02:56.7]} 13. Rfe1 {[%clk 0:02:43.3]} 13... a6 {[%clk 0:02:53.2]} 14. e3
{[%clk 0:02:41.5]} 14... Rc8 {[%clk 0:02:52.2]} 15. Qb3 {[%clk 0:02:40.8]} 15...
b5 {[%clk 0:02:50.8]} 16. Rac1 {[%clk 0:02:41]} 16... Nb6 {[%clk 0:02:47.3]} 17.
Bf1 {[%clk 0:02:35.6]} 17... Nc4 {[%clk 0:02:42.4]} 18. a4 {[%clk 0:02:28.3]}
18... b4 {[%clk 0:02:35.1]} 19. Na2 {[%clk 0:02:28.7]} 19... Na5 {[%clk
0:02:34]} 20. Qd3 {[%clk 0:02:16.3]} 20... Nc4 {[%clk 0:02:30.7]} 21. b3 {[%clk
0:02:12.8]} 21... Qa5 {[%clk 0:02:07.2]} 22. Be2 {[%clk 0:01:51.8]} 22... Nd6
{[%clk 0:01:47.4]} 23. Nd2 {[%clk 0:01:41.5]} 23... Nfe4 {[%clk 0:01:45.5]} 24.
f3 {[%clk 0:01:24.2]} 24... Nc3 {[%clk 0:01:23.7]} 25. Nxc3 {[%clk 0:01:22.7]}
25... bxc3 {[%clk 0:01:25.6]} 26. Nb1 {[%clk 0:01:24.2]} 26... c2 {[%clk
0:01:20.4]} 27. Na3 {[%clk 0:01:15.5]} 27... Rc3 {[%clk 0:01:05.1]} 28. Qd2
{[%clk 0:01:15.5]} 28... Ne4 {[%clk 0:00:46]} 29. fxe4 {[%clk 0:01:02.6]} 29...
Bb4 {[%clk 0:00:42.4]} 30. Nxc2 {[%clk 0:00:53.2]} 30... Rxc2 {[%clk 0:00:41.8]}
31. Qxc2 {[%clk 0:00:55.1]} 31... Bxe1 {[%clk 0:00:43.7]} 32. e5 {[%clk
0:00:51.3]} 32... h6 {[%clk 0:00:39.2]} 33. Kf1 {[%clk 0:00:44.7]} 33... Bb4
{[%clk 0:00:34]} 34. h4 {[%clk 0:00:44.9]} 34... Ba3 {[%clk 0:00:33.1]} 35. Qc3
{[%clk 0:00:36]} 35... Qb6 {[%clk 0:00:23.2]} 36. Rc2 {[%clk 0:00:35.4]} 36...
Rc8 {[%clk 0:00:20]} 37. Qd3 {[%clk 0:00:36.7]} 37... Qd8 {[%clk 0:00:16.7]} 38.
h5 {[%clk 0:00:35.9]} 38... a5 {[%clk 0:00:14.2]} 39. Bd1 {[%clk 0:00:31.1]}
39... Rxc2 {[%clk 0:00:13.3]} 40. Bxc2 {[%clk 0:00:32]} 40... Qb6 {[%clk
0:00:12.4]} 41. Qh7+ {[%clk 0:00:27.1]} 41... Kf8 {[%clk 0:00:13.3]} 42. Qh8+
{[%clk 0:00:29]} 42... Ke7 {[%clk 0:00:14]} 43. Qxg7 {[%clk 0:00:29.8]} 43...
Ba6+ {[%clk 0:00:11]} 44. Kg2 {[%clk 0:00:26.2]} 44... Qc7 {[%clk 0:00:11.4]}
45. Bg6 {[%clk 0:00:25.6]} 45... Ke8 {[%clk 0:00:07.2]} 46. Qg8+ {[%clk
0:00:26.4]} 46... Bf8 {[%clk 0:00:07.8]} 47. Bxh6 {[%clk 0:00:24.7]} 47... Qe7
{[%clk 0:00:08.5]} 48. Qxf8+ {[%clk 0:00:21.8]} 48... Qxf8 {[%clk 0:00:09.6]}
49. Bxf8 {[%clk 0:00:23.7]} 49... Kxf8 {[%clk 0:00:11.5]} 50. Bc2 {[%clk
0:00:23.9]} 50... Kg7 {[%clk 0:00:12.5]} 51. g4 {[%clk 0:00:24.5]} 51... f6
{[%clk 0:00:11.9]} 52. exf6+ {[%clk 0:00:24.6]} 52... Kxf6 {[%clk 0:00:13.8]}
53. Kf3 {[%clk 0:00:25.4]} 53... Kg5 {[%clk 0:00:14.1]} 54. Bd1 {[%clk
0:00:24.9]} 54... Bd3 {[%clk 0:00:13.7]} 55. Kf2 {[%clk 0:00:24.8]} 55... Be4
{[%clk 0:00:13.4]} 56. Ke1 {[%clk 0:00:26.1]} 56... Bd3 {[%clk 0:00:13.2]} 57.
Kd2 {[%clk 0:00:27.3]} 57... Be4 {[%clk 0:00:11.9]} 58. Kc3 {[%clk 0:00:28.8]}
58... Bg2 {[%clk 0:00:11.8]} 59. b4 {[%clk 0:00:30.1]} 59... axb4+ {[%clk
0:00:12.7]} 60. Kxb4 {[%clk 0:00:32]} 60... Bf1 {[%clk 0:00:14.6]} 61. a5 {[%clk
0:00:32.5]} 61... Bc4 {[%clk 0:00:16.2]} 62. Kc5 {[%clk 0:00:33.9]} 62... Bd3
{[%clk 0:00:17]} 63. Kb6 {[%clk 0:00:35]} 63... Bc4 {[%clk 0:00:17.8]} 64. a6
{[%clk 0:00:36.3]} 64... Bxa6 {[%clk 0:00:19.7]} 65. Kxa6 {[%clk 0:00:38.2]} 1-0

[Event "*** Titled Tuesday Blitz"]
[Site "Chess.com"]
[Date "2020.02.04"]
[Round "1"]
[White "Parhamov"]
[Black "Volodar_Murzin"]
[Result "0-1"]
[WhiteElo "3013"]
[BlackElo "2550"]
[TimeControl "180+2"]
[EndTime "9:10:57 PST"]
[Termination "Volodar_Murzin won on time"]

1. Nf3 {[%clk 0:03:00]} 1... d5 {[%clk 0:02:58.5]} 2. g3 {[%clk 0:02:54.4]} 2...
Bg4 {[%clk 0:02:57.9]} 3. Bg2 {[%clk 0:02:51.5]} 3... c6 {[%clk 0:02:58.6]} 4.
c4 {[%clk 0:02:33.8]} 4... Nf6 {[%clk 0:02:52.7]} 5. Qb3 {[%clk 0:02:25.9]} 5...
Qb6 {[%clk 0:02:50.9]} 6. d3 {[%clk 0:02:25.8]} 6... Nbd7 {[%clk 0:02:48.7]} 7.
Be3 {[%clk 0:02:22.6]} 7... Qxb3 {[%clk 0:02:46.3]} 8. axb3 {[%clk 0:02:18.3]}
8... e6 {[%clk 0:02:46.9]} 9. h3 {[%clk 0:02:17.4]} 9... Bxf3 {[%clk 0:02:45]}
10. Bxf3 {[%clk 0:02:18.4]} 10... Bc5 {[%clk 0:02:45]} 11. Bxc5 {[%clk
0:02:14.6]} 11... Nxc5 {[%clk 0:02:46.9]} 12. Nd2 {[%clk 0:02:15.5]} 12... Ke7
{[%clk 0:02:43.7]} 13. O-O {[%clk 0:01:35.3]} 13... a5 {[%clk 0:02:32.3]} 14.
Ra3 {[%clk 0:01:25.6]} 14... Ra6 {[%clk 0:02:30.1]} 15. Rfa1 {[%clk 0:01:24.8]}
15... Rha8 {[%clk 0:02:29.8]} 16. d4 {[%clk 0:01:24.4]} 16... Ncd7 {[%clk
0:02:29]} 17. e3 {[%clk 0:01:23.3]} 17... Ne8 {[%clk 0:02:11.3]} 18. Be2 {[%clk
0:01:22.2]} 18... R6a7 {[%clk 0:02:12.7]} 19. b4 {[%clk 0:01:21.2]} 19... a4
{[%clk 0:02:12.6]} 20. b3 {[%clk 0:01:14.2]} 20... dxc4 {[%clk 0:01:59.9]} 21.
Nxc4 {[%clk 0:01:11.5]} 21... Nd6 {[%clk 0:01:38.3]} 22. Nxd6 {[%clk 0:01:10]}
22... Kxd6 {[%clk 0:01:37.3]} 23. bxa4 {[%clk 0:01:09.9]} 23... Nb6 {[%clk
0:01:32.8]} 24. a5 {[%clk 0:01:03.8]} 24... Nd5 {[%clk 0:01:33.8]} 25. b5 {[%clk
0:00:56.2]} 25... cxb5 {[%clk 0:01:12.4]} 26. Bxb5 {[%clk 0:00:56.9]} 26... Rc8
{[%clk 0:01:10.1]} 27. a6 {[%clk 0:00:50.4]} 27... bxa6 {[%clk 0:00:54.9]} 28.
Rxa6+ {[%clk 0:00:49.1]} 28... Rxa6 {[%clk 0:00:56.1]} 29. Rxa6+ {[%clk
0:00:48.3]} 29... Ke7 {[%clk 0:00:57.6]} 30. Bc6 {[%clk 0:00:46.3]} 30... Nb4
{[%clk 0:00:26.1]} 31. Ra7+ {[%clk 0:00:46.6]} 31... Kf6 {[%clk 0:00:27.8]} 32.
Be4 {[%clk 0:00:48]} 32... g6 {[%clk 0:00:24.9]} 33. h4 {[%clk 0:00:48.5]} 33...
h5 {[%clk 0:00:25.3]} 34. Kg2 {[%clk 0:00:48.7]} 34... Rd8 {[%clk 0:00:22.7]}
35. Rb7 {[%clk 0:00:47.2]} 35... Nd5 {[%clk 0:00:23.1]} 36. Bxd5 {[%clk
0:00:47.6]} 36... Rxd5 {[%clk 0:00:23.9]} 37. Kf3 {[%clk 0:00:47.8]} 37... Rf5+
{[%clk 0:00:23.3]} 38. Ke2 {[%clk 0:00:49]} 38... Ra5 {[%clk 0:00:24.7]} 39. Rb2
{[%clk 0:00:50]} 39... e5 {[%clk 0:00:23.5]} 40. Kd3 {[%clk 0:00:47]} 40... exd4
{[%clk 0:00:23.2]} 41. exd4 {[%clk 0:00:48.4]} 41... Ke6 {[%clk 0:00:21.5]} 42.
Kc4 {[%clk 0:00:48.6]} 42... Ra4+ {[%clk 0:00:18.3]} 43. Kd3 {[%clk 0:00:48.8]}
43... Ra3+ {[%clk 0:00:19.1]} 44. Ke4 {[%clk 0:00:49.7]} 44... Ra4 {[%clk
0:00:19.9]} 45. Rb6+ {[%clk 0:00:50.2]} 45... Ke7 {[%clk 0:00:21.1]} 46. Ke5
{[%clk 0:00:46.8]} 46... Ra7 {[%clk 0:00:19.4]} 47. d5 {[%clk 0:00:47.7]} 47...
Ra1 {[%clk 0:00:16.4]} 48. Rb7+ {[%clk 0:00:47.2]} 48... Kf8 {[%clk 0:00:17.1]}
49. d6 {[%clk 0:00:46.4]} 49... Ra5+ {[%clk 0:00:16.5]} 50. Kd4 {[%clk
0:00:44.5]} 50... Ke8 {[%clk 0:00:17.6]} 51. Re7+ {[%clk 0:00:43.7]} 51... Kf8
{[%clk 0:00:18.7]} 52. Re2 {[%clk 0:00:44.8]} 52... Ra6 {[%clk 0:00:19.4]} 53.
Kc5 {[%clk 0:00:46.1]} 53... Ra5+ {[%clk 0:00:20.8]} 54. Kb6 {[%clk 0:00:47.4]}
54... Rd5 {[%clk 0:00:22.2]} 55. Kc6 {[%clk 0:00:48.5]} 55... Rd1 {[%clk
0:00:23.8]} 56. d7 {[%clk 0:00:50.1]} 56... Rc1+ {[%clk 0:00:22.4]} 57. Kb5
{[%clk 0:00:38.3]} 57... Rb1+ {[%clk 0:00:22.4]} 58. Ka4 {[%clk 0:00:39]} 58...
Ra1+ {[%clk 0:00:22.3]} 59. Kb5 {[%clk 0:00:17.7]} 59... Rb1+ {[%clk 0:00:23.3]}
60. Kc6 {[%clk 0:00:13.7]} 60... Rc1+ {[%clk 0:00:24.6]} 61. Kb7 {[%clk
0:00:13.9]} 61... Rb1+ {[%clk 0:00:25]} 0-1

[Event "*** Titled Tuesday Blitz"]
[Site "Chess.com"]
[Date "2020.02.04"]
[Round "1"]
[White "AlexanderKing"]
[Black "Anton_Demchenko"]
[Result "0-1"]
[WhiteElo "2518"]
[BlackElo "2965"]
[TimeControl "180+2"]
[EndTime "9:11:06 PST"]
[Termination "Anton_Demchenko won on time"]

1. d4 {[%clk 0:02:59.2]} 1... Nf6 {[%clk 0:02:58.4]} 2. c4 {[%clk 0:03:00]} 2...
g6 {[%clk 0:02:59.4]} 3. Nc3 {[%clk 0:03:00.9]} 3... Bg7 {[%clk 0:03:00.6]} 4.
e4 {[%clk 0:03:01.9]} 4... d6 {[%clk 0:03:02]} 5. Nf3 {[%clk 0:03:03.2]} 5...
O-O {[%clk 0:03:03]} 6. Be2 {[%clk 0:03:04.6]} 6... e5 {[%clk 0:03:04.2]} 7. d5
{[%clk 0:03:05.9]} 7... a5 {[%clk 0:03:05]} 8. Bg5 {[%clk 0:03:07.1]} 8... Na6
{[%clk 0:03:01.4]} 9. Nd2 {[%clk 0:03:07.7]} 9... Qe8 {[%clk 0:02:57.5]} 10. h4
{[%clk 0:03:08]} 10... h5 {[%clk 0:02:55.8]} 11. f3 {[%clk 0:02:45.2]} 11... Nh7
{[%clk 0:02:45.9]} 12. Be3 {[%clk 0:02:45.9]} 12... Qe7 {[%clk 0:02:47.3]} 13.
g4 {[%clk 0:02:38.1]} 13... Kh8 {[%clk 0:02:35]} 14. a3 {[%clk 0:02:27]} 14...
Bd7 {[%clk 0:02:34.3]} 15. Nf1 {[%clk 0:02:09.2]} 15... f5 {[%clk 0:02:23.3]}
16. gxf5 {[%clk 0:01:54.4]} 16... gxf5 {[%clk 0:02:24.4]} 17. Qd2 {[%clk
0:01:55.5]} 17... f4 {[%clk 0:02:13.8]} 18. Bf2 {[%clk 0:01:54.8]} 18... Bf6
{[%clk 0:02:14.8]} 19. Qc2 {[%clk 0:01:41.2]} 19... Rg8 {[%clk 0:02:15.5]} 20.
Nd2 {[%clk 0:01:40.9]} 20... Nf8 {[%clk 0:02:14.5]} 21. O-O-O {[%clk 0:01:34.5]}
21... Ng6 {[%clk 0:02:14.4]} 22. Rh2 {[%clk 0:01:32.9]} 22... b6 {[%clk
0:02:07.7]} 23. b3 {[%clk 0:01:31]} 23... Kh7 {[%clk 0:01:44.2]} 24. Rdh1 {[%clk
0:01:31.8]} 24... Rg7 {[%clk 0:01:41.1]} 25. Qb2 {[%clk 0:01:28.5]} 25... Nc5
{[%clk 0:01:37]} 26. Kc2 {[%clk 0:01:12.8]} 26... Nh8 {[%clk 0:01:35.6]} 27. Ra1
{[%clk 0:01:01]} 27... Nf7 {[%clk 0:01:29]} 28. Qc1 {[%clk 0:00:57.3]} 28... Nh6
{[%clk 0:01:28]} 29. Qe1 {[%clk 0:00:53.1]} 29... Rag8 {[%clk 0:01:26.3]} 30. b4
{[%clk 0:00:45.3]} 30... Nb7 {[%clk 0:01:25.7]} 31. Bf1 {[%clk 0:00:41.1]} 31...
Ng4 {[%clk 0:01:24.9]} 32. fxg4 {[%clk 0:00:39.6]} 32... hxg4 {[%clk 0:01:26.8]}
33. Rg2 {[%clk 0:00:28.7]} 33... Be8 {[%clk 0:01:19.3]} 34. Be2 {[%clk 0:00:26]}
34... Bh5 {[%clk 0:01:19.1]} 35. Rg1 {[%clk 0:00:27.1]} 35... Qf7 {[%clk
0:01:17.4]} 36. Nf1 {[%clk 0:00:25.1]} 36... Be7 {[%clk 0:01:05.4]} 37. Qc1
{[%clk 0:00:25.9]} 37... g3 {[%clk 0:01:02]} 38. Bxh5 {[%clk 0:00:25.2]} 38...
Qxh5 {[%clk 0:01:03.9]} 39. Be1 {[%clk 0:00:22.5]} 39... Nd8 {[%clk 0:00:58.7]}
40. Nd2 {[%clk 0:00:17.1]} 40... Nf7 {[%clk 0:00:49.3]} 41. Qd1 {[%clk
0:00:18.4]} 41... Qg6 {[%clk 0:00:50.7]} 42. Nf3 {[%clk 0:00:18.4]} 42... Nh6
{[%clk 0:00:52]} 43. Qe2 {[%clk 0:00:19.6]} 43... Ng4 {[%clk 0:00:53.4]} 44. Bd2
{[%clk 0:00:21.1]} 44... Qh5 {[%clk 0:00:41.3]} 45. Rg2 {[%clk 0:00:21.4]} 45...
Ra8 {[%clk 0:00:33.6]} 46. b5 {[%clk 0:00:21.6]} 46... Rag8 {[%clk 0:00:33.1]}
47. a4 {[%clk 0:00:22.4]} 47... Kh8 {[%clk 0:00:32.5]} 48. Rh1 {[%clk
0:00:23.6]} 48... Nf2 {[%clk 0:00:27.2]} 49. Rhg1 {[%clk 0:00:16.1]} 49... Rg6
{[%clk 0:00:21.5]} 50. Nd1 {[%clk 0:00:16.4]} 50... Ng4 {[%clk 0:00:21.9]} 51.
Kd3 {[%clk 0:00:13.9]} 51... Kg7 {[%clk 0:00:22.4]} 52. Rh1 {[%clk 0:00:15.1]}
52... Kf8 {[%clk 0:00:23.5]} 53. Qf1 {[%clk 0:00:10.9]} 53... Ke8 {[%clk
0:00:24.4]} 54. Nc3 {[%clk 0:00:10.7]} 54... Kd8 {[%clk 0:00:24.5]} 55. Nd1
{[%clk 0:00:09.4]} 55... Kc8 {[%clk 0:00:25.9]} 56. Kc2 {[%clk 0:00:10.9]} 56...
Nf2 {[%clk 0:00:22.6]} 57. Nxf2 {[%clk 0:00:03.9]} 57... Qxf3 {[%clk 0:00:23.4]}
58. Nd3 {[%clk 0:00:04.4]} 58... Qxe4 {[%clk 0:00:24.5]} 59. Kb3 {[%clk
0:00:04.1]} 59... Qf5 {[%clk 0:00:23.6]} 60. Ne1 {[%clk 0:00:04.1]} 60... Rg4
{[%clk 0:00:22.1]} 61. Re2 {[%clk 0:00:03.3]} 61... e4 {[%clk 0:00:21.9]} 62.
Rg1 {[%clk 0:00:04.8]} 62... f3 {[%clk 0:00:21.1]} 63. Re3 {[%clk 0:00:06.2]}
63... Bxh4 {[%clk 0:00:22.2]} 64. Nxf3 {[%clk 0:00:05.5]} 64... exf3 {[%clk
0:00:22.3]} 65. Rxf3 {[%clk 0:00:07.4]} 65... Qe4 {[%clk 0:00:18.1]} 66. Rg2
{[%clk 0:00:08.2]} 66... Kb7 {[%clk 0:00:16.3]} 67. Bc3 {[%clk 0:00:09.3]} 67...
Bd8 {[%clk 0:00:11.1]} 68. Rf7 {[%clk 0:00:09.2]} 68... Rh4 {[%clk 0:00:09.6]}
69. Be1 {[%clk 0:00:05.9]} 69... Rh2 {[%clk 0:00:05.4]} 70. Rxg3 {[%clk
0:00:06.5]} 70... Rxg3+ {[%clk 0:00:06.3]} 0-1